fUSD/lending_fUSD_20250225
["ID","MTS","AMOUNT","RATE_DAILY","PERIOD"]
[354464155,1740519526263,-500.0,0.00049589,120]
[354464156,1740519526303,-500.0,0.00049589,120]
[354464157,1740519526346,-500.0,0.00049589,120]
[354464158,1740519526388,-727.74,0.00049589,120]
[354464159,1740519526432,-500.0,0.00049589,120]
[354464160,1740519526475,-500.0,0.00049589,120]
[354464161,1740519526522,-502.19118187,0.00049589,120]
[354464162,1740519526566,-500.0,0.00049589,120]
[354464163,1740519526609,-500.0,0.00049589,120]
[354464164,1740519526661,-500.0,0.00049589,120]
[354464165,1740519526712,-500.0,0.00049589,120]
[354464166,1740519526763,-500.0,0.00049589,120]
[354464167,1740519526814,-584.26,0.00049589,120]
[354464168,1740519526860,-500.0,0.00049589,120]
[354464169,1740519526904,-500.0,0.00049589,120]
[354464170,1740519526951,-500.0,0.00049589,120]
[354464171,1740519526996,-502.15542727,0.00049589,120]
[354464172,1740519527046,-500.0,0.00049589,120]
[354464173,1740519527095,-566.72,0.00049589,120]
[354464174,1740519527143,-500.0,0.00049589,120]
[354464175,1740519527188,-500.0,0.00049589,120]
[354464176,1740519527235,-500.0,0.00049589,120]
[354464177,1740519527279,-716.63,0.00049589,120]
[354464178,1740519527325,-500.0,0.00049589,120]
[354464179,1740519527371,-903.76,0.00049589,120]
[354464180,1740519527415,-502.56849598,0.00049589,120]
[354464181,1740519527459,-675.46,0.00049589,120]
[354464182,1740519527502,-500.0,0.00049589,120]
[354464183,1740519527544,-500.0,0.00049589,120]
[354464184,1740519527587,-500.0,0.00049589,120]
[354464185,1740519527630,-500.0,0.00049589,120]
[354464186,1740519527672,-500.0,0.00049589,120]
[354464187,1740519527714,-500.0,0.00049589,120]
[354464188,1740519527757,-500.0,0.00049589,120]
[354464189,1740519527803,-500.0,0.00049589,120]
[354464190,1740519527849,-500.0,0.00049589,120]
[354464191,1740519527889,-500.0,0.00049589,120]
[354464192,1740519527932,-697.09,0.00049589,120]
[354464193,1740519528191,-500.0,0.00049589,120]
[354464194,1740519528236,-500.0,0.00049589,120]
[354464195,1740519528285,-1057.48,0.00049589,30]
[354464196,1740519528331,-500.0,0.00049589,120]
[354464197,1740519528380,-500.0,0.00049589,120]
[354464198,1740519528426,-500.0,0.00049589,120]
[354464199,1740519528475,-500.0,0.00049589,120]
[354464200,1740519528523,-641.64,0.00049589,120]
[354464201,1740519528569,-500.0,0.00049589,120]
[354464202,1740519528615,-500.0,0.00049589,120]
[354464203,1740519528660,-500.0,0.00049589,120]
[354464204,1740519528707,-500.0,0.00049589,120]
[354464205,1740519528753,-835.65,0.00049589,120]
[354464206,1740519528801,-500.0,0.00049589,120]
[354464207,1740519528846,-500.0,0.00049589,120]
[354464208,1740519528895,-571.49,0.00049589,120]
[354464209,1740519528943,-500.0,0.00049589,120]
[354464210,1740519528987,-500.0,0.00049589,120]
[354464211,1740519529029,-500.0,0.00049589,120]
[354464212,1740519529071,-500.0,0.00049589,120]
[354464213,1740519529115,-500.0,0.00049589,120]
[354464214,1740519529158,-500.0,0.00049589,120]
[354464215,1740519529201,-500.0,0.00049589,120]
[354464216,1740519529241,-500.0,0.00049589,120]
[354464217,1740519529284,-500.0,0.00049589,120]
[354464218,1740519529325,-616.19,0.00049589,120]
[354464219,1740519529366,-500.0,0.00049589,120]
[354464220,1740519529410,-500.0,0.00049589,120]
[354464221,1740519529451,-500.0,0.00049589,120]
[354464222,1740519529494,-500.0,0.00049589,120]
[354464223,1740519529537,-665.24,0.00049589,120]
[354464224,1740519529579,-500.0,0.00049589,120]
[354464225,1740519529621,-500.0,0.00049589,120]
[354464226,1740519529663,-578.83611015,0.00049589,120]
[354464227,1740519529706,-500.0,0.00049589,120]
[354464228,1740519529747,-500.0,0.00049589,120]
[354464229,1740519529795,-500.0,0.00049589,120]
[354464230,1740519529841,-2011.63,0.00049589,120]
[354464231,1740519529882,-529.01551377,0.00049589,120]
[354464232,1740519529925,-500.0,0.00049589,120]
[354464233,1740519529963,-500.0,0.00049589,120]
[354464234,1740519530002,-877.65,0.00049589,120]
[354464235,1740519530042,-500.0,0.00049589,120]
[354464236,1740519530081,-759.99,0.00049589,120]
[354464237,1740519530123,-500.0,0.00049589,120]
[354464238,1740519530165,-500.0,0.00049589,120]
[354464239,1740519530206,-500.0,0.00049589,120]
[354464240,1740519530253,-500.0,0.00049589,120]
[354464241,1740519530295,-500.0,0.00049589,120]
[354464242,1740519530341,-500.0,0.00049589,120]
[354464243,1740519530389,-290.64912387,0.00049589,120]
[354464244,1740519530432,-500.0,0.00049589,120]
[354464245,1740519530477,-500.0,0.00049589,120]
[354464246,1740519530519,-500.0,0.00049589,120]
[354464247,1740519530562,-500.0,0.00049589,120]
[354464248,1740519530603,-967.43,0.00049589,120]
[354464249,1740519530644,-1032.67,0.00049589,120]
[354464250,1740519530686,-500.0,0.00049589,120]
[354464251,1740519530726,-500.0,0.00049589,120]
[354464252,1740519530768,-500.0,0.00049589,120]
[354464253,1740519530809,-500.0,0.00049589,120]
[354464254,1740519530852,-500.0,0.00049589,120]
[354464255,1740519530893,-500.0,0.00049589,120]
[354464256,1740519530936,-504.05653333,0.00049589,30]
[354464257,1740519530980,-500.0,0.00049589,120]
[354464258,1740519531024,-500.0,0.00049589,120]
[354464259,1740519531067,-500.0,0.00049589,120]
[354464260,1740519531113,-500.0,0.00049589,120]
[354464261,1740519531156,-500.0,0.00049589,120]
[354464262,1740519531197,-500.0,0.00049589,120]
[354464263,1740519531235,-500.0,0.00049589,120]
[354464264,1740519531277,-500.0,0.00049589,120]
[354464265,1740519531319,-591.57805841,0.00049589,120]
[354464266,1740519531361,-545.64,0.00049589,120]
[354464267,1740519531404,-1209.75,0.00049589,120]
[354464268,1740519531448,-500.0,0.00049589,120]
[354464269,1740519531491,-1396.31,0.00049589,120]
[354464270,1740519531534,-500.0,0.00049589,120]
[354464271,1740519531577,-500.0,0.00049589,120]
[354464272,1740519531620,-1615.84,0.00049589,120]
[354464273,1740519531663,-569.06,0.00049589,120]
[354464274,1740519531705,-726.47,0.00049589,120]
[354464275,1740519531748,-546.65,0.00049589,120]
[354464276,1740519531794,-1211.56,0.00049589,120]
[354464277,1740519531839,-500.0,0.00049589,120]
[354464278,1740519531882,-1000.0,0.00049589,120]
[354464279,1740519531922,-500.0,0.00049589,120]
[354464280,1740519531963,-500.0,0.00049589,120]
[354464281,1740519532004,-501.7670183,0.00049589,120]
[354464282,1740519532045,-500.0,0.00049589,120]
[354464283,1740519532088,-517.28167265,0.00049589,120]
[354464284,1740519532129,-500.0,0.00049589,120]
[354464285,1740519532173,-1800.96,0.00049589,120]
[354464286,1740519532216,-500.0,0.00049589,120]
[354464287,1740519532457,-500.0,0.00049589,120]
[354464288,1740519532502,-500.0,0.00049589,120]
[354464289,1740519532553,-1729.39,0.00049589,120]
[354464290,1740519532601,-2065.84,0.00049589,120]
[354464291,1740519532646,-500.0,0.00049589,120]
[354464292,1740519532690,-500.0,0.00049589,120]
[354464293,1740519532733,-500.0,0.00049589,120]
[354464294,1740519532777,-500.0,0.00049589,120]
[354464295,1740519532819,-971.68,0.00049589,120]
[354464296,1740519532860,-500.0,0.00049589,120]
[354464297,1740519532901,-500.0,0.00049589,120]
[354464298,1740519532944,-500.0,0.00049589,120]
[354464299,1740519532983,-500.0,0.00049589,120]
[354464300,1740519533027,-500.0,0.00049589,120]
[354464301,1740519533071,-1970.74,0.00049589,120]
[354464302,1740519533112,-319.01073114,0.00049589,120]
[354464303,1740519533154,-1777.71,0.00049589,120]
[354464304,1740519533195,-840.37,0.00049589,120]
[354464305,1740519533239,-2313.54,0.00049589,120]
[354464306,1740519533281,-504.07265802,0.00049589,120]
[354464307,1740519533324,-500.0,0.00049589,120]
[354464308,1740519533366,-513.71,0.00049589,120]
[354464309,1740519533412,-542.7,0.00049589,120]
[354464310,1740519533453,-500.0,0.00049589,120]
[354464311,1740519533493,-500.0,0.00049589,120]
[354464312,1740519533534,-513.40146948,0.00049589,120]
[354464313,1740519533577,-500.0,0.00049589,120]
[354464314,1740519533621,-1215.27,0.00049589,120]
[354464315,1740519533664,-500.0,0.00049589,120]
[354464316,1740519533707,-650.97,0.00049589,120]
[354464317,1740519533748,-308.44693161,0.00049589,120]
[354464318,1740519533795,-500.0,0.00049589,120]
[354464319,1740519533838,-500.0,0.00049589,120]
[354464320,1740519533880,-500.0,0.00049589,120]
[354464321,1740519533922,-500.0,0.00049589,120]
[354464322,1740519533962,-500.0,0.00049589,120]
[354464323,1740519534004,-1692.33,0.00049589,120]
[354464324,1740519534045,-500.0,0.00049589,120]
[354464325,1740519534085,-500.0,0.00049589,120]
[354464326,1740519534128,-646.97,0.00049589,120]
[354464327,1740519534176,-717.58,0.00049589,120]
[354464328,1740519534220,-500.0,0.00049589,120]
[354464329,1740519534264,-500.0,0.00049589,120]
[354464330,1740519534305,-500.0,0.00049589,120]
[354464331,1740519534349,-500.0,0.00049589,120]
[354464332,1740519534391,-500.0,0.00049589,120]
[354464333,1740519534432,-225.47064989,0.00049589,120]
[354464334,1740519534478,-1422.79,0.00049589,120]
[354464335,1740519534524,-1382.68,0.00049589,120]
[354464336,1740519534570,-519.51,0.00049589,120]
[354464337,1740519534612,-2756.83,0.00049589,120]
[354464338,1740519534661,-500.0,0.00049589,120]
[354464339,1740519534704,-1058.23,0.00049589,120]
[354464340,1740519534747,-500.0,0.00049589,120]
[354464341,1740519534794,-500.0,0.00049589,120]
[354464342,1740519534840,-993.04,0.00049589,120]
[354464343,1740519534882,-1028.59,0.00049589,120]
[354464344,1740519534922,-500.0,0.00049589,120]
[354464345,1740519534963,-500.0,0.00049589,120]
[354464346,1740519535002,-1272.19,0.00049589,120]
[354464347,1740519535044,-500.0,0.00049589,120]
[354464348,1740519535086,-738.46,0.00049589,120]
[354464349,1740519535128,-993.06,0.00049589,120]
[354464350,1740519535172,-500.0,0.00049589,120]
[354464351,1740519535215,-500.0,0.00049589,120]
[354464352,1740519535257,-500.0,0.00049589,120]
[354464353,1740519535303,-500.0,0.00049589,120]
[354464354,1740519535348,-500.0,0.00049589,120]
[354464355,1740519535395,-1182.45,0.00049589,120]
[354464356,1740519535441,-696.75,0.00049589,120]
[354464357,1740519535485,-1144.21,0.00049589,120]
[354464358,1740519535531,-1825.07,0.00049589,120]
[354464359,1740519535572,-500.0,0.00049589,120]
[354464360,1740519535614,-500.0,0.00049589,120]
[354464361,1740519535655,-686.47,0.00049589,120]
[354464362,1740519535697,-500.0,0.00049589,120]
[354464363,1740519535738,-500.0,0.00049589,120]
[354464364,1740519535780,-920.38,0.00049589,120]
[354464365,1740519535823,-500.0,0.00049589,120]
[354464366,1740519535864,-500.0,0.00049589,120]
[354464367,1740519535903,-500.0,0.00049589,120]
[354464368,1740519535944,-500.0,0.00049589,120]
[354464369,1740519535984,-3139.42,0.00049589,120]
[354464370,1740519536025,-500.0,0.00049589,120]
[354464371,1740519536073,-1299.7,0.00049589,120]
[354464372,1740519536123,-1242.73,0.00049589,120]
[354464373,1740519536176,-500.0,0.00049589,120]
[354464374,1740519536227,-1431.84,0.00049589,120]
[354464375,1740519536271,-1450.68,0.00049589,120]
[354464376,1740519536315,-500.0,0.00049589,120]
[354464377,1740519536359,-500.0,0.00049589,120]
[354464378,1740519536402,-500.0,0.00049589,120]
[354464379,1740519536447,-2131.81,0.00049589,120]
[354464380,1740519536491,-500.0,0.00049589,120]
[354464381,1740519536728,-500.0,0.00049589,120]
[354464382,1740519536773,-1000.0,0.00049589,120]
[354464383,1740519536814,-500.0,0.00049589,120]
[354464384,1740519536859,-500.0,0.00049589,120]
[354464385,1740519536900,-500.0,0.00049589,120]
[354464386,1740519536945,-500.0,0.00049589,120]
[354464387,1740519536984,-500.0,0.00049589,120]
[354464388,1740519537023,-774.78,0.00049589,120]
[354464389,1740519537062,-500.0,0.00049589,120]
[354464390,1740519537103,-500.0,0.00049589,120]
[354464391,1740519537147,-610.91566873,0.00049589,120]
[354464392,1740519537191,-500.0,0.00049589,120]
[354464393,1740519537236,-500.0,0.00049589,120]
[354464394,1740519537288,-500.0,0.00049589,120]
[354464395,1740519537347,-500.0,0.00049589,120]
[354464396,1740519537391,-500.0,0.00049589,120]
[354464397,1740519537437,-500.0,0.00049589,120]
[354464398,1740519537482,-500.0,0.00049589,120]
[354464399,1740519537528,-537.10857048,0.00049589,120]
[354464400,1740519537575,-500.0,0.00049589,120]
[354464401,1740519537619,-500.0,0.00049589,120]
[354464402,1740519537666,-500.0,0.00049589,120]
[354464403,1740519537708,-500.0,0.00049589,120]
[354464404,1740519537753,-838.06,0.00049589,120]
[354464405,1740519537800,-500.0,0.00049589,120]
[354464406,1740519537845,-500.0,0.00049589,120]
[354464407,1740519537887,-627.74137312,0.00049589,120]
[354464408,1740519537934,-500.0,0.00049589,120]
[354464409,1740519537977,-500.0,0.00049589,120]
[354464410,1740519538020,-500.0,0.00049589,120]
[354464411,1740519538063,-500.0,0.00049589,120]
[354464412,1740519538109,-500.0,0.00049589,120]
[354464413,1740519538159,-1410.87,0.00049589,120]
[354464414,1740519538203,-843.66,0.00049589,120]
[354464415,1740519538245,-500.0,0.00049589,120]
[354464416,1740519538294,-500.0,0.00049589,120]
[354464417,1740519538338,-978.98,0.00049589,120]
[354464418,1740519538381,-500.0,0.00049589,120]
[354464419,1740519538425,-500.0,0.00049589,120]
[354464420,1740519538468,-500.0,0.00049589,120]
[354464421,1740519538509,-500.0,0.00049589,120]
[354464422,1740519538549,-1628.84,0.00049589,120]
[354464423,1740519538592,-500.0,0.00049589,120]
[354464424,1740519538635,-500.0,0.00049589,120]
[354464425,1740519538678,-500.0,0.00049589,120]
[354464426,1740519538718,-500.0,0.00049589,120]
[354464427,1740519538758,-500.0,0.00049589,120]
[354464428,1740519538801,-834.86,0.00049589,120]
[354464429,1740519538840,-1697.11,0.00049589,120]
[354464430,1740519538879,-1094.32,0.00049589,120]
[354464431,1740519538920,-500.0,0.00049589,120]
[354464432,1740519538959,-500.0,0.00049589,120]
[354464433,1740519539001,-500.0,0.00049589,120]
[354464434,1740519539040,-500.0,0.00049589,120]
[354464435,1740519539079,-500.0,0.00049589,120]
[354464436,1740519539122,-500.0,0.00049589,120]
[354464437,1740519539162,-500.0,0.00049589,120]
[354464438,1740519539204,-515.28,0.00049589,120]
[354464439,1740519539245,-521.95003718,0.00049589,120]
[354464440,1740519539288,-500.0,0.00049589,120]
[354464441,1740519539331,-500.0,0.00049589,120]
[354464442,1740519539374,-500.0,0.00049589,120]
[354464443,1740519539416,-500.0,0.00049589,120]
[354464444,1740519539460,-500.0,0.00049589,120]
[354464445,1740519539503,-549.11213886,0.00049589,120]
[354464446,1740519539548,-500.0,0.00049589,120]
[354464447,1740519539592,-500.0,0.00049589,120]
[354464448,1740519539635,-2252.89,0.00049589,120]
[354464449,1740519539679,-500.0,0.00049589,120]
[354464450,1740519539720,-500.0,0.00049589,120]
[354464451,1740519539767,-540.97,0.00049589,120]
[354464452,1740519539808,-1287.27,0.00049589,120]
[354464453,1740519539851,-480.51950104,0.00049589,120]
[354464454,1740519539901,-500.0,0.00049589,120]
[354464455,1740519539943,-500.0,0.00049589,120]
[354464456,1740519539983,-635.01419321,0.00049589,120]
[354464457,1740519540025,-279.65134043,0.00049589,120]
[354464458,1740519540080,-500.0,0.00049589,120]
[354464459,1740519540138,-1585.06,0.00049589,120]
[354464460,1740519540184,-1317.06,0.00049589,120]
[354464461,1740519540228,-500.0,0.00049589,120]
[354464462,1740519540274,-500.0,0.00049589,120]
[354464463,1740519540320,-586.15,0.00049589,120]
[354464464,1740519540366,-500.0,0.00049589,120]
[354464465,1740519540411,-1312.24,0.00049589,120]
[354464466,1740519540456,-500.0,0.00049589,120]
[354464467,1740519540500,-500.0,0.00049589,120]
[354464468,1740519540546,-1935.13,0.00049589,120]
[354464469,1740519540591,-500.0,0.00049589,120]
[354464470,1740519540634,-500.0,0.00049589,120]
[354464471,1740519540678,-540.79,0.00049589,60]
[354464472,1740519540721,-500.0,0.00049589,120]
[354464473,1740519540767,-500.0,0.00049589,120]
[354464474,1740519540811,-500.0,0.00049589,120]
[354464475,1740519540855,-500.0,0.00049589,120]
[354464476,1740519541084,-954.9,0.00049589,120]
[354464477,1740519541128,-500.0,0.00049589,120]
[354464478,1740519541177,-500.0,0.00049589,120]
[354464479,1740519541222,-500.0,0.00049589,30]
[354464480,1740519541266,-475.82132969,0.00049589,30]
[354464481,1740519541319,-979.07,0.00049589,120]
[354464482,1740519541368,-500.0,0.00049589,120]
[354464483,1740519541412,-500.0,0.00049589,120]
[354464484,1740519541457,-500.0,0.00049589,120]
[354464485,1740519541500,-500.0,0.00049589,120]
[354464486,1740519541548,-557.22,0.00049589,120]
[354464487,1740519541592,-500.0,0.00049589,120]
[354464488,1740519541633,-2209.14,0.00049589,120]
[354464489,1740519541677,-500.0,0.00049589,30]
[354464490,1740519541718,-500.0,0.00049589,120]
[354464491,1740519541766,-500.0,0.00049589,120]
[354464492,1740519541810,-1492.45,0.00049589,120]
[354464493,1740519541855,-500.0,0.00049589,120]
[354464494,1740519541897,-500.0,0.00049589,120]
[354464495,1740519541940,-2377.96,0.00049589,120]
[354464496,1740519541981,-500.0,0.00049589,120]
[354464497,1740519542023,-500.0,0.00049589,120]
[354464498,1740519542067,-500.0,0.00049589,120]
[354464499,1740519542116,-500.0,0.00049589,120]
[354464500,1740519542163,-500.0,0.00049589,120]
[354464501,1740519542210,-500.0,0.00049589,120]
[354464502,1740519542256,-500.0,0.00049589,120]
[354464503,1740519542301,-1481.65,0.00049589,120]
[354464504,1740519542348,-500.0,0.00049589,120]
[354464505,1740519542395,-500.0,0.00049589,120]
[354464506,1740519542442,-2172.87,0.00049589,120]
[354464507,1740519542488,-566.30383351,0.00049589,120]
[354464508,1740519542534,-500.0,0.00049589,120]
[354464509,1740519542579,-1998.14,0.00049589,120]
[354464510,1740519542623,-500.0,0.00049589,120]
[354464511,1740519542667,-500.0,0.00049589,120]
[354464512,1740519542711,-1488.97,0.00049589,120]
[354464513,1740519542755,-500.0,0.00049589,120]
[354464514,1740519542807,-500.0,0.00049589,120]
[354464515,1740519542849,-500.0,0.00049589,120]
[354464516,1740519542892,-500.0,0.00049589,120]
[354464517,1740519542933,-500.0,0.00049589,120]
[354464518,1740519542974,-500.0,0.00049589,120]
[354464519,1740519543017,-500.0,0.00049589,120]
[354464520,1740519543063,-500.0,0.00049589,120]
[354464521,1740519543111,-671.07,0.00049589,120]
[354464522,1740519543158,-1950.74,0.00049589,120]
[354464523,1740519543208,-500.0,0.00049589,120]
[354464524,1740519543256,-500.0,0.00049589,120]
[354464525,1740519543306,-500.0,0.00049589,120]
[354464526,1740519543355,-1137.11,0.00049589,120]
[354464527,1740519543405,-500.0,0.00049589,120]
[354464528,1740519543451,-1530.86,0.00049589,120]
[354464529,1740519543498,-552.56,0.00049589,120]
[354464530,1740519543543,-500.0,0.00049589,120]
[354464531,1740519543591,-679.86,0.00049589,120]
[354464532,1740519543637,-500.0,0.00049589,120]
[354464533,1740519543682,-1794.44,0.00049589,120]
[354464534,1740519543727,-500.0,0.00049589,120]
[354464535,1740519543772,-500.0,0.00049589,120]
[354464536,1740519543816,-500.0,0.00049589,120]
[354464537,1740519543862,-500.0,0.00049589,120]
[354464538,1740519543906,-500.0,0.00049589,120]
[354464539,1740519543949,-500.0,0.00049589,120]
[354464540,1740519543993,-500.0,0.00049589,120]
[354464541,1740519544036,-500.0,0.00049589,120]
[354464542,1740519544081,-708.43,0.00049589,120]
[354464543,1740519544125,-500.0,0.00049589,120]
[354464544,1740519544169,-500.0,0.00049589,120]
[354464545,1740519544212,-500.0,0.00049589,120]
[354464546,1740519544256,-513.46,0.00049589,120]
[354464547,1740519544302,-500.0,0.00049589,120]
[354464548,1740519544347,-500.0,0.00049589,120]
[354464549,1740519544391,-500.0,0.00049589,120]
[354464550,1740519544435,-500.0,0.00049589,120]
[354464551,1740519544480,-1659.85,0.00049589,120]
[354464552,1740519544524,-1245.86,0.00049589,120]
[354464553,1740519544566,-475.44044458,0.00049589,120]
[354464554,1740519544611,-897.93,0.00049589,120]
[354464555,1740519544657,-500.0,0.00049589,120]
[354464556,1740519544700,-500.0,0.00049589,120]
[354464557,1740519544743,-566.86,0.00049589,120]
[354464558,1740519544790,-500.0,0.00049589,120]
[354464559,1740519544834,-500.0,0.00049589,120]
[354464560,1740519544881,-500.0,0.00049589,120]
[354464561,1740519544925,-617.58,0.00049589,120]
[354464562,1740519544968,-500.0,0.00049589,120]
[354464563,1740519545010,-3889.8,0.00049589,120]
[354464564,1740519545060,-500.0,0.00049589,120]
[354464565,1740519545114,-500.0,0.00049589,120]
[354464566,1740519545157,-500.0,0.00049589,120]
[354464567,1740519545200,-500.0,0.00049589,120]
[354464568,1740519545244,-500.0,0.00049589,120]
[354464569,1740519545479,-500.0,0.00049589,120]
[354464570,1740519545524,-500.0,0.00049589,120]
[354464571,1740519545567,-1171.74,0.00049589,120]
[354464572,1740519545610,-500.0,0.00049589,120]
[354464573,1740519545653,-500.0,0.00049589,120]
[354464574,1740519545697,-500.0,0.00049589,120]
[354464575,1740519545740,-500.0,0.00049589,120]
[354464576,1740519545784,-500.0,0.00049589,120]
[354464577,1740519545825,-521.50508946,0.00049589,120]
[354464578,1740519545869,-504.06297161,0.00049589,120]
[354464579,1740519545909,-500.0,0.00049589,120]
[354464580,1740519545951,-510.72,0.00049589,120]
[354464581,1740519545992,-812.11,0.00049589,120]
[354464582,1740519546033,-759.75,0.00049589,120]
[354464583,1740519546075,-500.0,0.00049589,120]
[354464584,1740519546115,-500.0,0.00049589,120]
[354464585,1740519546158,-500.0,0.00049589,120]
[354464586,1740519546198,-500.0,0.00049589,120]
[354464587,1740519546240,-500.0,0.00049589,120]
[354464588,1740519546283,-500.0,0.00049589,120]
[354464589,1740519546327,-1204.41,0.00049589,120]
[354464590,1740519546372,-596.16,0.00049589,120]
[354464591,1740519546413,-500.0,0.00049589,120]
[354464592,1740519546457,-500.0,0.00049589,120]
[354464593,1740519546500,-560.31332206,0.00049589,120]
[354464594,1740519546545,-500.0,0.00049589,120]
[354464595,1740519546589,-697.2,0.00049589,120]
[354464596,1740519546633,-594.25,0.00049589,120]
[354464597,1740519546677,-500.0,0.00049589,120]
[354464598,1740519546722,-500.0,0.00049589,120]
[354464599,1740519546769,-500.0,0.00049589,120]
[354464600,1740519546815,-500.0,0.00049589,120]
[354464601,1740519546859,-500.0,0.00049589,120]
[354464602,1740519546903,-1047.3,0.00049589,120]
[354464603,1740519546947,-2159.85,0.00049589,120]
[354464604,1740519546992,-500.0,0.00049589,120]
[354464605,1740519547037,-500.0,0.00049589,120]
[354464606,1740519547081,-500.0,0.00049589,120]
[354464607,1740519547127,-513.98,0.00049589,120]
[354464608,1740519547173,-1071.84,0.00049589,120]
[354464609,1740519547220,-500.0,0.00049589,120]
[354464610,1740519547266,-500.0,0.00049589,120]
[354464611,1740519547312,-739.85,0.00049589,120]
[354464612,1740519547356,-500.0,0.00049589,120]
[354464613,1740519547402,-500.0,0.00049589,120]
[354464614,1740519547449,-692.62,0.00049589,120]
[354464615,1740519547493,-507.35565486,0.00049589,120]
[354464616,1740519547538,-500.0,0.00049589,120]
[354464617,1740519547584,-500.0,0.00049589,120]
[354464618,1740519547631,-500.0,0.00049589,120]
[354464619,1740519547676,-1924.5,0.00049589,120]
[354464620,1740519547720,-193.60530501,0.00049589,120]
[354464621,1740519547772,-736.75,0.00049589,120]
[354464622,1740519547816,-500.0,0.00049589,120]
[354464623,1740519547860,-500.0,0.00049589,120]
[354464624,1740519547903,-500.0,0.00049589,120]
[354464625,1740519547946,-500.0,0.00049589,120]
[354464626,1740519547990,-500.0,0.00049589,120]
[354464627,1740519548032,-500.0,0.00049589,120]
[354464628,1740519548079,-500.0,0.00049589,120]
[354464629,1740519548126,-681.43,0.00049589,120]
[354464630,1740519548174,-1299.41,0.00049589,120]
[354464631,1740519548220,-520.74,0.00049589,120]
[354464632,1740519548268,-500.0,0.00049589,120]
[354464633,1740519548314,-1626.31,0.00049589,120]
[354464634,1740519548359,-500.0,0.00049589,120]
[354464635,1740519548405,-500.0,0.00049589,120]
[354464636,1740519548450,-500.0,0.00049589,120]
[354464637,1740519548495,-500.0,0.00049589,120]
[354464638,1740519548540,-500.0,0.00049589,120]
[354464639,1740519548584,-1211.1,0.00049589,120]
[354464640,1740519548629,-1700.36,0.00049589,120]
[354464641,1740519548677,-500.0,0.00049589,120]
[354464642,1740519548723,-500.0,0.00049589,120]
[354464643,1740519548768,-500.0,0.00049589,120]
[354464644,1740519548815,-500.0,0.00049589,120]
[354464645,1740519548860,-583.59,0.00049589,120]
[354464646,1740519548903,-881.43,0.00049589,120]
[354464647,1740519548948,-500.0,0.00049589,120]
[354464648,1740519548990,-344.79572524,0.00049589,120]
[354464649,1740519549032,-507.2,0.00049589,120]
[354464650,1740519549075,-500.0,0.00049589,120]
[354464651,1740519549119,-500.0,0.00049589,120]
[354464652,1740519549162,-500.0,0.00049589,120]
[354464653,1740519549204,-500.0,0.00049589,120]
[354464654,1740519549248,-500.0,0.00049589,120]